Cogmind - Beta 13 @@@ ROGUE MODE // 2024.04.10 @ 10:50:19 Player: gabr Result: Destroyed by YI-UF0 with YI-UF0's Doublenader Performance ------------- Evolutions (0) 0 Regions Visited (2) 400 Robots Destroyed (7) 35 Value Destroyed (110) 110 Prototype IDs (3) 60 Alien Tech Used (0) 0 Bonus (0) 0 TOTAL SCORE: 605 Bonus ------- None Cogmind --------- Core Integrity 0/250 Matter 245/300 Energy 71/100 System Corruption 2% Temperature Cool (10) Movement Core (150) Ox2 Location -10/Mines Parts ------- > --- POWER (1) -------- (None) > --- PROPULSION (2) --- (None) > --- UTILITY (2) ------ Small Storage Unit > --- WEAPON (2) ------- Medium Laser Light Assault Rifle > --- INVENTORY (8) ---- Light Ion Engine Aluminum Leg Aluminum Leg Medium Matter Pod (0) Mining Laser Peak State ------------ > --- POWER ------------ Light Ion Engine > --- PROPULSION ------- Aluminum Leg Aluminum Leg > --- UTILITY ---------- Small Storage Unit Improved Terrain Scanner > --- WEAPON ----------- Medium Laser Light Assault Rifle > --- INVENTORY -------- Light Ion Engine Light Assault Rifle Grenade Launcher [Rating: 9] Favorites ----------- Power Light Ion Engine Engine Light Ion Engine Propulsion Aluminum Leg Leg Aluminum Leg Utility Small Storage Unit Device Improved Terrain Scanner Storage Small Storage Unit Weapon Light Assault Rifle Energy Gun Medium Laser Energy Cannon Beam Cannon Ballistic Gun Light Assault Rifle Launcher Grenade Launcher Build | -11 -10 -10 ------- Run | Yrd Mat Min Slots Evolved . | . . . Power . | . . . Propulsion . | . . . Utility . | . . . Weapon . | . . . Parts Attached 20 | 6 6 8 Power 4 | 1 2 1 Engine 4 | 1 2 1 Core . | . . . Reactor . | . . . Propulsion 5 | 2 1 2 Treads . | . . . Leg 5 | 2 1 2 Wheel . | . . . Hover . | . . . Flight . | . . . Utility 3 | 1 1 1 Device 2 | . 1 1 Storage 1 | 1 . . Processor . | . . . Hackware . | . . . Protection . | . . . Artifact . | . . . Weapon 8 | 2 2 4 Energy Gun 3 | 1 . 2 Energy Cannon 1 | . 1 . Ballistic Gun 3 | 1 1 1 Ballistic Cannon . | . . . Launcher 1 | . . 1 Special Weapon . | . . . Impact Weapon . | . . . Slashing Weapon . | . . . Piercing Weapon . | . . . Special Melee Weapon . | . . . Unidentified Prototypes . | . . . Parts Lost 7 | . . 7 Power 1 | . . 1 Propulsion 2 | . . 2 Utility 1 | . . 1 Weapon 3 | . . 3 Highest Loss Streak 7 | . . 7 To Critical Strikes . | . . . Average Slot Usage (%) 93 | . 91 96 Engine 13 | . 13 13 Leg 27 | . 28 26 Device 9 | . 7 13 Storage 14 | . 14 14 Energy Gun 10 | . 10 10 Energy Cannon 8 | . 3 13 Ballistic Gun 8 | . 13 3 Naked Turns . | . . . Heaviest Build 15 | 11 13 15 Greatest Support 20 | 20 20 20 Greatest Overweight (x) 2 | . . 2 Average Overweight (x) . | . . . Largest Inventory Capacity 8 | 8 8 8 Average Capacity 7 | 7 8 8 Most Carried 8 | 2 6 8 Average Carried 4 | 1 3 7 Final Capacity 8 | 8 8 8 Final Carried 6 | 2 6 5 Class Distribution -------------------- 69% | Mutant 30% | Scavenger-Mutant Dominant Class ---------------- Mutant | -10/Materials Scavenger-Mutant | -10/Mines Resources | -11 -10 -10 ----------- Run | Yrd Mat Min Matter Collected 374 | 234 33 107 Remotely . | . . . Salvage Created 186 | 35 33 118 Parts 14 | 3 3 8 Haulers Intercepted . | . . . Recyclers Shooed 2 | 1 1 . Parts Field Recycled . | . . . Retrieved Matter . | . . . Parts Self-Destructed . | . . . Prevented . | . . . Kills | -11 -10 -10 ------- Run | Yrd Mat Min Combat Hostiles Destroyed 2 | . . 2 Cannons 2 | . . 2 Classes Destroyed 3 | 1 1 1 Worker 1 | . 1 . Tunneler 4 | 2 1 1 Grunt 2 | . . 2 Best Kill Streak 2 | 2 1 2 Combat Bots Only 2 | . . 2 Max Kills in Single Turn 1 | 1 1 1 Gunslinging . | . . . Exploded . | . . . Melee . | . . . Uniques/NPCs Destroyed . | . . . Combat | -11 -10 -10 -------- Run | Yrd Mat Min Hostile Shots Fired 47 | . . 47 Missed 13 | . . 13 Damage Taken 917 | . . 917 Core 276 | . . 276 Absorbed by Shields . | . . . Core Remaining (%) 100 | 100 . . Volleys Fired 38 | 6 9 23 Largest 2 | 2 2 2 Hottest 100 | 70 80 100 Shots Fired 67 | 12 18 37 Gun 44 | 12 17 15 Cannon 23 | . 1 22 Launcher . | . . . Special . | . . . Kinetic 26 | 6 9 11 Thermal 41 | 6 9 26 Explosive . | . . . Electromagnetic . | . . . Robot Hit Streak 13 | 7 13 6 Robot Miss Streak 3 | 1 3 3 Penetration Max . | . . . Secondary Targets . | . . . Shots Hit Robots 47 | 10 11 26 Core Hits 13 | 2 4 7 Critical Kills . | . . . Critical Parts Destroyed . | . . . Critical Strikes 2 | . 2 . Burn 2 | . 2 . Melee Attacks . | . . . Impact . | . . . Slashing . | . . . Piercing . | . . . Sneak Attacks . | . . . Combat Hostiles . | . . . Follow-up Attacks . | . . . Damage Inflicted 606 | 117 114 375 Guns 326 | 117 114 95 Cannons 280 | . . 280 Explosions . | . . . Melee . | . . . Ramming . | . . . Kinetic 154 | 43 39 72 Thermal 452 | 74 75 303 Explosive . | . . . Electromagnetic . | . . . Impact . | . . . Slashing . | . . . Piercing . | . . . Highest Corruption 2 | . 2 2 Average Corruption 2 | . 2 2 Corruption Purged . | . . . Corruption Blocked . | . . . Effects 4 | . 2 2 Message Errors 1 | . . 1 Matter Fused 1 | . 1 . Heat Flow Errors 1 | . 1 . Data Loss (major) 1 | . . 1 Overload Shots . | . . . Overflow Damage 1 | . . 1 Projectiles 1 | . . 1 Explosions . | . . . Melee . | . . . Knockbacks . | . . . Impact . | . . . Kinetic . | . . . Secondary . | . . . Self-Inflicted Damage . | . . . Shots . | . . . Rammed . | . . . Targets Rammed . | . . . Kicked . | . . . Crushed . | . . . Highest Temperature 360 | 100 315 360 Average Temperature 138 | 50 125 194 Received Heat Transfer 120 | . . 120 Effects 1 | . . 1 Matter Decay 1 | . . 1 Siege Activations . | . . . Robots Corrupted . | . . . Combat Hostiles . | . . . Parts Fried . | . . . Impact Corruptions . | . . . Robots Melted . | . . . Combat Hostiles . | . . . Parts Melted 2 | 2 . . Heat Transferred 1246 | 222 370 654 Parts Sabotaged . | . . . Parts Stolen . | . . . Parts Stripped . | . . . Power Chain Reactions . | . . . Alert | -11 -10 -10 ------- Run | Yrd Mat Min Peak Influence 67 | 10 31 67 Initial 12 | . 6 12 Average 29 | 2 17 53 Maximum Alert Level . | . . . Low Security (%) 100 | 100 100 100 Level 1 . | . . . Level 2 . | . . . Level 3 . | . . . Level 4 . | . . . Level 5 . | . . . High Security . | . . . Max Security . | . . . Squads Dispatched 1 | . 1 . Investigation . | . . . Extermination . | . . . Reinforcement 1 | . 1 . Assault . | . . . Garrison . | . . . Intercept . | . . . Searches Triggered . | . . . Construction Impeded . | . . . Haulers Reinforced . | . . . Active Scanning Responses . | . . . Cargo Convoy Interrupts . | . . . Stealth | -11 -10 -10 --------- Run | Yrd Mat Min Distress Signals 1 | . 1 . Communications Jammed . | . . . Distress Signals . | . . . Times Spotted 7 | . 4 3 Peak Tracking Total 3 | . 3 2 Tactical Retreats . | . . . Traps | -11 -10 -10 ------- Run | Yrd Mat Min Traps Triggered 2 | . 2 . Indirectly . | . . . Trap Hack Attempts . | . . . Triggered . | . . . Disarmed . | . . . Reprogrammed . | . . . Reused . | . . . Traps Extracted . | . . . Installed . | . . . Triggered . | . . . Machines | -11 -10 -10 ---------- Run | Yrd Mat Min Machines Disabled . | . . . Max in Single Turn . | . . . Machines Repaired . | . . . Machines Dismantled . | . . . Machines Sabotaged . | . . . Overloaded Fab Kills . | . . . Hacking | -11 -10 -10 --------- Run | Yrd Mat Min Machines Accessed 2 | . 2 . Terminals 2 | . 2 . Fabricators . | . . . Repair Stations . | . . . Recycling Units . | . . . Scanalyzers . | . . . Garrison Access . | . . . Total Hacks 7 | . 7 . Successful 1 | . 1 . Failed 6 | . 6 . Catastrophic 2 | . 2 . Database Lockouts . | . . . Manual 4 | . 4 . Terminals 7 | . 7 . Fabricators . | . . . Repair Stations . | . . . Recycling Units . | . . . Scanalyzers . | . . . Garrison Access . | . . . Terminal Hacks 1 | . 1 . Prototype ID Bank 1 | . 1 . Fabricator Hacks . | . . . Repair Station Hacks . | . . . Recycling Unit Hacks . | . . . Scanalyzer . | . . . Garrison Access Hacks . | . . . Unauthorized Hacks . | . . . Terminals . | . . . Fabricators . | . . . Repair Stations . | . . . Recycling Units . | . . . Scanalyzers . | . . . Garrison Access . | . . . Data Cores Recovered . | . . . Used . | . . . Hacking Detections 2 | . 2 . Full Trace Events . | . . . Feedback Events . | . . . Feedback Blocked . | . . . Robot Schematics Acquired . | . . . Robots Built . | . . . Authchips . | . . . Time . | . . . Total Robot Build Rating . | . . . Part Schematics Acquired . | . . . Parts Built . | . . . Authchips . | . . . Time . | . . . Total Part Build Rating . | . . . Parts Repaired . | . . . Time . | . . . Parts Recycled . | . . . Recycled Matter . | . . . Retrieved Matter . | . . . Retrieved Components . | . . . Parts Scanalyzed . | . . . Part Schematics Acquired . | . . . Parts Damaged . | . . . Bothacking | -11 -10 -10 ------------ Run | Yrd Mat Min Used RIF Installer . | . . . Robots Hacked . | . . . Non-combat . | . . . Combat . | . . . Robot Hacks Applied . | . . . Relay Couplers Released . | . . . Fabnet Peak Effective % . | . . . Robots Rewired . | . . . Allies Hacked . | . . . Hacks Repelled . | . . . Allies | -11 -10 -10 -------- Run | Yrd Mat Min Total Allies . | . . . Largest Group . | . . . Highest-Rated Group . | . . . Highest-Rated Ally . | . . . Total Orders . | . . . Ally Attacks . | . . . Total Damage . | . . . Kills . | . . . Allies Corrupted . | . . . Allies Melted . | . . . Intel | -11 -10 -10 ------- Run | Yrd Mat Min Robot Analysis Total . | . . . Derelict Logs Recovered 1 | . . 1 Drone Launches . | . . . Drone Recoveries . | . . . Exploration | -11 -10 -10 ------------- Run | Yrd Mat Min Turns Passed 494 | 79 226 189 Spaces Moved 299 | 47 152 100 Core 11 | 7 . 4 Treads . | . . . Legs 288 | 40 152 96 Wheels . | . . . Hover . | . . . Flight . | . . . Fastest Speed 50 | 50 120 100 Average Speed 118 | 109 120 120 Slowest Speed 150 | 120 120 150 Overloaded Moves . | . . . Propulsion Burnouts . | . . . Robots Hopped . | . . . Cave-ins Triggered . | . . . Exploration Rate (%) 20 | 4 29 29 Regions Visited 2 Branch Regions 1 Pre-discovered Areas 1 | . . 1 Known Exits Taken . | . . . Unknown Exits Taken 2 | 1 1 . Scrap Searched . | . . . Spaces Dug . | . . . Terrain Destroyed . | . . . Melee . | . . . Projectile . | . . . AOE . | . . . Terrain Rammed . | . . . Walls Destroyed . | . . . Machines Disabled . | . . . Actions | -11 -10 -10 --------- Run | Yrd Mat Min Total 372 | 60 178 134 Wait 5 | . 5 . Move 297 | 46 151 100 Hop . | . . . Pick Up 6 | 2 4 . Fast Attach 13 | 6 5 2 Attach 4 | . 1 3 Detach 2 | . 2 . Swap 3 | . . 3 Drop 4 | . 1 3 Fire 38 | 6 9 23 Melee . | . . . Ram . | . . . Kick . | . . . Crush . | . . . Escape Stasis . | . . . Rewire . | . . . Trap . | . . . Miscellaneous . | . . . Route ------- -11/Scrapyard -10/Materials -10/Mines (discovered 1 exit: [*Mat]) History --------- Turn | Location | Event 7 | -11/Scrapyard | Discovered new exit (range 15) 80 | -11/Scrapyard | Entered Materials 235 | -10/Materials | Discovered new exit (range 12) 306 | -10/Materials | Entered Mines 312 | -10/Mines | Build established: Mutant 378 | -10/Mines | Discovered new exit (range 7) 449 | -10/Mines | Learned location of Mines (-9) 484 | -10/Mines | Core integrity fell below 50% 492 | -10/Mines | Core integrity fell below 20% 495 | -10/Mines | Destroyed by YI-UF0 with YI-UF0's Doublenader Last Messages --------------- 00380_ K-01 Serf collects debris. 00449_ Acquired derelict log, extracted data. World map updated: -9/Mines. 00461_ T-07 Excavator destroyed. 00468_ KBZVGVIROG2DUR4DEXR< 00469_ U-05 Engineer destroyed. 00470_ The unstable cave ceiling collapses. 00481_ Aluminum Leg destroyed. 00482_ YI-UF0 mumbles something. 00483_ Ion Engine destroyed. 00484_ The unstable cave ceiling collapses. 00485_ Beam Cannon destroyed. 00485_ Sml. Laser destroyed. 00485_ Imp. Heat Sink destroyed. 00486_ The unstable cave ceiling collapses. 00488_ K-01 Serf collects debris. 00490_ The unstable cave ceiling collapses. 00491_ Grenade Launcher destroyed. 00493_ YI-UF0 mumbles something. 00493_ The unstable cave ceiling collapses. Map ----- +----------------------------------------------------+ | ?????????????????????????????????????????????????? | | ?????????????????????????????????????????????????? | | ?????????????????????????????????????????????????? | | ?????????????????????????????????????????????????? | | ?????????????????????????????????????????????????? | | ?????????????????????????????????????????????????? | | ?????????????????????????????????????????????????? | | ?????????????????????????????????????????????????? | | ?????????????????????????????????????????????????? | | ?????????????????????????????????????????????????? | | ??????????????????????? ????????????????????????? | | ??????????????????????# ????????????????????????? | | ??????????????????????# ????????????????????????? | | ??????????????????????# ????????????????????????? | | ?????????????????????## ????????????????????????? | | ?????????????????????? ####????????????????????? | | ?????????????????????? # ?????????????????????? | | ?????????????????????? $ g ?????????????????????? | | ??????????????????????# ?????????????????????? | | ?????????????????????## #?????????????????????? | | ?????????????????????# ##????????????????????? | | ????????????????????## ##???????????????????? | | ????????????????????# #???????????????????? | | ???????????????????## #???????????????????? | | ???????????????????# #???????????????????? | | ???????????????????## @ #????#??????????????? | | ??????????????????## ##?????????????? | | ?????? ???????????# #?????????????? | | ??????# ??????????# #?????????????? | | ??????? #????????## ##?????????????? | | ??????? #????????# #####??????????????? | | ???????? ???????# #??????????????????? | | ????????? ??????## # #??????????????????? | | ?????????""" ????#### #??????????????????? | | ??? """ #??## # ###?????????????????## | | ???? """ ### ###??????????????###### | | ???????# #???????????????## | | ????????# ######????????####???# | | ????????## ##????????????## ##?## | | ?????????## ############### ### #### | | ??????????## # ##??# | | ???????????### ## #???# | | ?????????????# ??################# ## ##???# | | ?????????????#???????????????????# ## ##????# | | ??????????????????????????????#### ##?????# | | ?????????????????????????????## < ##?????# | | ?????????????????????????????# ##????# | | ?????????????????????????????# ###### | | ?????????????????????????????# | | ?????????????????????????????# | +----------------------------------------------------+ Best States ------------- Heat Dissipation 39 Energy Generation 10 Energy Capacity 250 Matter Stores 288 Matter Capacity 300 Sight Range 16 Terrain Scan Range 16 Terrain Scan Density 10 Evasion (%) 55 Item Schematics ----------------- None Robot Schematics ------------------ None Fabricated ------------ Nothing Alien Tech Used ----------------- None Achievements -------------- None Challenges ------------ None Game ------ Seed CloakSupersonicMaul Manual? 0 Play Time 00:05:11 Cumulative 75.9 hours Start 2024.04.10 @ 10:32:45 End 2024.04.10 @ 10:50:19 Sessions 1 Manual Loads 0 Difficulty Rogue Special Mode None Game No. 161 Rogue 161 Adventurer 0 Explorer 0 Win Type - Total 0 Types 0/0/0/0/0/0/0/0/0 Lore% 28 Gallery% 43 Achievement% 32 Wizard Run 0 Options --------- Layout 0 ASCII 0 Keyboard 1 Movement Numpad Keybinds 0 Fullscreen 1 Font 24/Terminus Map View 76x50 Zoom Use 0% Tactical HUD 1 Map Filters NONE Filters NONE Steam 1 RUN: 8771593c-c3da-471a-b70b-3a95771965d0